[Event "*** Titled Tuesday Blitz"]
[Site "Chess.com"]
[Date "2020.04.14"]
[Round "2"]
[White "BaMBoMaTTo"]
[Black "hellokostya"]
[Result "1-0"]
[WhiteElo "2720"]
[BlackElo "2512"]
[TimeControl "180+1"]
[EndTime "10:17:47 PDT"]
[Termination "BaMBoMaTTo won on time"]

1. e4 {[%clk 0:03:00.4]} 1... Nc6 {[%clk 0:02:57.5]} 2. Nf3 {[%clk 0:02:59.9]}
2... d6 {[%clk 0:02:53.4]} 3. d4 {[%clk 0:02:59.7]} 3... Nf6 {[%clk 0:02:48.2]}
4. Nc3 {[%clk 0:02:56.8]} 4... g6 {[%clk 0:02:47.2]} 5. h3 {[%clk 0:02:51.5]}
5... Bg7 {[%clk 0:02:46.6]} 6. Be3 {[%clk 0:02:51.2]} 6... O-O {[%clk 0:02:46]}
7. Qd2 {[%clk 0:02:51]} 7... a6 {[%clk 0:02:45]} 8. Bh6 {[%clk 0:02:44.2]} 8...
b5 {[%clk 0:02:41.6]} 9. Bd3 {[%clk 0:02:44.2]} 9... e5 {[%clk 0:02:36.8]} 10.
d5 {[%clk 0:02:44.3]} 10... Ne7 {[%clk 0:02:33.6]} 11. O-O-O {[%clk 0:02:07.4]}
11... Bd7 {[%clk 0:02:26.3]} 12. g4 {[%clk 0:02:05.1]} 12... c6 {[%clk
0:02:15.8]} 13. dxc6 {[%clk 0:01:46.9]} 13... Bxc6 {[%clk 0:01:47.1]} 14. Bxg7
{[%clk 0:01:45.9]} 14... Kxg7 {[%clk 0:01:46.8]} 15. g5 {[%clk 0:01:43.1]} 15...
Nh5 {[%clk 0:01:44.6]} 16. Ne2 {[%clk 0:01:43.6]} 16... Qc7 {[%clk 0:01:37.9]}
17. Ng3 {[%clk 0:01:09.7]} 17... Nf4 {[%clk 0:01:36.5]} 18. h4 {[%clk
0:01:08.3]} 18... Rac8 {[%clk 0:01:29.5]} 19. h5 {[%clk 0:01:07.4]} 19... Bd7
{[%clk 0:00:47.5]} 20. Kb1 {[%clk 0:01:01.4]} 20... Bg4 {[%clk 0:00:46.5]} 21.
Be2 {[%clk 0:00:31.9]} 21... d5 {[%clk 0:00:22.3]} 22. Rh4 {[%clk 0:00:30.6]}
22... Bxf3 {[%clk 0:00:16.8]} 23. Bxf3 {[%clk 0:00:30.4]} 23... d4 {[%clk
0:00:16.6]} 24. Rdh1 {[%clk 0:00:25.8]} 24... Rg8 {[%clk 0:00:12.6]} 25. hxg6
{[%clk 0:00:23.2]} 25... hxg6 {[%clk 0:00:13.5]} 26. Rh7+ {[%clk 0:00:23.5]}
26... Kf8 {[%clk 0:00:13.8]} 27. Bg4 {[%clk 0:00:23.2]} 27... Rd8 {[%clk
0:00:12.2]} 28. Ne2 {[%clk 0:00:23.8]} 28... Ne6 {[%clk 0:00:11.2]} 29. Bxe6
{[%clk 0:00:23.5]} 29... fxe6 {[%clk 0:00:12]} 30. f4 {[%clk 0:00:23.2]} 30...
Ke8 {[%clk 0:00:10.9]} 31. Qb4 {[%clk 0:00:18.3]} 31... Rd7 {[%clk 0:00:07.1]}
32. fxe5 {[%clk 0:00:12.1]} 32... Qxe5 {[%clk 0:00:06.8]} 33. Nc1 {[%clk
0:00:12.4]} 33... Qxg5 {[%clk 0:00:06.2]} 34. Nd3 {[%clk 0:00:12.2]} 34... Qf6
{[%clk 0:00:05.9]} 35. e5 {[%clk 0:00:12]} 35... Qf5 {[%clk 0:00:05.4]} 36. Nc5
{[%clk 0:00:12.6]} 36... Rc7 {[%clk 0:00:04.8]} 37. a4 {[%clk 0:00:09.3]} 37...
Rf8 {[%clk 0:00:04.1]} 38. axb5 {[%clk 0:00:09.5]} 38... axb5 {[%clk 0:00:03.2]}
39. Qxb5+ {[%clk 0:00:10.4]} 39... Kd8 {[%clk 0:00:02.5]} 40. Qb8+ {[%clk
0:00:10.3]} 40... Nc8 {[%clk 0:00:02.4]} 41. Qxc7+ {[%clk 0:00:10.2]} 1-0

[Event "*** Titled Tuesday Blitz"]
[Site "Chess.com"]
[Date "2020.04.14"]
[Round "2"]
[White "vladislavkovalev"]
[Black "mbojan"]
[Result "1-0"]
[WhiteElo "2876"]
[BlackElo "2586"]
[TimeControl "180+1"]
[EndTime "10:17:48 PDT"]
[Termination "vladislavkovalev won by resignation"]

1. e4 {[%clk 0:03:00.9]} 1... g6 {[%clk 0:02:58.3]} 2. d4 {[%clk 0:03:01]} 2...
Bg7 {[%clk 0:02:57.5]} 3. Nc3 {[%clk 0:03:01.6]} 3... d6 {[%clk 0:02:56.9]} 4.
Be3 {[%clk 0:03:01.3]} 4... a6 {[%clk 0:02:56.6]} 5. Qd2 {[%clk 0:03:01.4]} 5...
b5 {[%clk 0:02:56]} 6. O-O-O {[%clk 0:03:00.1]} 6... Nd7 {[%clk 0:02:49.6]} 7.
f4 {[%clk 0:02:59.7]} 7... Bb7 {[%clk 0:02:46]} 8. Bd3 {[%clk 0:02:42.6]} 8...
Nb6 {[%clk 0:01:43.8]} 9. e5 {[%clk 0:02:34.4]} 9... Nh6 {[%clk 0:01:39.2]} 10.
Nf3 {[%clk 0:02:28.5]} 10... b4 {[%clk 0:01:29.5]} 11. Ne4 {[%clk 0:02:26]}
11... a5 {[%clk 0:01:28.6]} 12. h3 {[%clk 0:02:20]} 12... Nd5 {[%clk 0:01:20.5]}
13. g4 {[%clk 0:02:17.2]} 13... Nxe3 {[%clk 0:01:04.5]} 14. Qxe3 {[%clk
0:02:18.1]} 14... Qd7 {[%clk 0:01:03]} 15. Rhe1 {[%clk 0:01:30.2]} 15... O-O
{[%clk 0:01:01.2]} 16. Kb1 {[%clk 0:01:29.3]} 16... f6 {[%clk 0:00:51]} 17. Bc4+
{[%clk 0:01:21.9]} 17... Kh8 {[%clk 0:00:50.2]} 18. exf6 {[%clk 0:01:17.9]}
18... exf6 {[%clk 0:00:48.7]} 19. d5 {[%clk 0:01:16.4]} 19... Rae8 {[%clk
0:00:41]} 20. Qd3 {[%clk 0:01:16.2]} 20... f5 {[%clk 0:00:31.5]} 21. Bb5 {[%clk
0:01:12.2]} 21... c6 {[%clk 0:00:31.2]} 22. dxc6 {[%clk 0:01:11.1]} 22... Bxc6
{[%clk 0:00:32]} 23. Bxc6 {[%clk 0:01:11.3]} 23... Qxc6 {[%clk 0:00:28.6]} 24.
Nxd6 {[%clk 0:00:52]} 24... Rxe1 {[%clk 0:00:26.8]} 25. Nxe1 {[%clk 0:00:51.1]}
25... fxg4 {[%clk 0:00:24.4]} 26. hxg4 {[%clk 0:00:52]} 26... Nxg4 {[%clk
0:00:22.7]} 27. Qe2 {[%clk 0:00:41.1]} 27... Nf6 {[%clk 0:00:21.3]} 28. Qe6
{[%clk 0:00:40.6]} 28... Qd7 {[%clk 0:00:19.6]} 29. Qb3 {[%clk 0:00:38.9]} 29...
Qe7 {[%clk 0:00:18]} 30. Nf3 {[%clk 0:00:37.5]} 30... h6 {[%clk 0:00:18]} 31.
Ne5 {[%clk 0:00:37.4]} 31... Kh7 {[%clk 0:00:18.5]} 32. Qd3 {[%clk 0:00:37.1]}
32... Rd8 {[%clk 0:00:14.7]} 33. Qxg6+ {[%clk 0:00:36.1]} 33... Kg8 {[%clk
0:00:15.3]} 34. Nef7 {[%clk 0:00:32.9]} 34... Rd7 {[%clk 0:00:14.3]} 35. Nxh6+
{[%clk 0:00:32.8]} 35... Kf8 {[%clk 0:00:14.5]} 36. Nhf5 {[%clk 0:00:30.3]}
36... Qe6 {[%clk 0:00:13.7]} 37. b3 {[%clk 0:00:17.1]} 37... a4 {[%clk
0:00:11.5]} 38. Rg1 {[%clk 0:00:16.6]} 38... a3 {[%clk 0:00:05.9]} 39. Nxg7
{[%clk 0:00:13.5]} 39... Qxd6 {[%clk 0:00:06.2]} 40. Rc1 {[%clk 0:00:04.9]}
40... Qd4 {[%clk 0:00:05.8]} 41. Ne6+ {[%clk 0:00:04.6]} 1-0

[Event "*** Titled Tuesday Blitz"]
[Site "Chess.com"]
[Date "2020.04.14"]
[Round "2"]
[White "BogdanDeac"]
[Black "Poghosyan_Suren"]
[Result "1-0"]
[WhiteElo "2724"]
[BlackElo "2517"]
[TimeControl "180+1"]
[EndTime "10:17:48 PDT"]
[Termination "BogdanDeac won by checkmate"]

1. e4 {[%clk 0:03:00.9]} 1... e6 {[%clk 0:02:59.6]} 2. Qe2 {[%clk 0:02:58.9]}
2... c5 {[%clk 0:02:54.8]} 3. Nf3 {[%clk 0:02:58.9]} 3... Nc6 {[%clk 0:02:54.8]}
4. g3 {[%clk 0:02:59.5]} 4... g6 {[%clk 0:02:52.1]} 5. Bg2 {[%clk 0:02:59.5]}
5... Bg7 {[%clk 0:02:53]} 6. O-O {[%clk 0:02:59.7]} 6... Nge7 {[%clk 0:02:53.2]}
7. c3 {[%clk 0:02:59.4]} 7... d5 {[%clk 0:02:53.2]} 8. e5 {[%clk 0:02:58.1]}
8... O-O {[%clk 0:02:41.7]} 9. d3 {[%clk 0:02:52.5]} 9... b6 {[%clk 0:02:32.7]}
10. h4 {[%clk 0:02:51.7]} 10... f6 {[%clk 0:02:30.8]} 11. exf6 {[%clk 0:02:50]}
11... Bxf6 {[%clk 0:02:31.6]} 12. Bh6 {[%clk 0:02:40.3]} 12... Re8 {[%clk
0:02:29.5]} 13. Bg5 {[%clk 0:02:32.6]} 13... Nf5 {[%clk 0:02:24.2]} 14. Re1
{[%clk 0:02:31.7]} 14... h6 {[%clk 0:02:14.5]} 15. Bxf6 {[%clk 0:02:23.7]} 15...
Qxf6 {[%clk 0:02:15.4]} 16. Ne5 {[%clk 0:02:23.4]} 16... Nxe5 {[%clk 0:02:05.1]}
17. Qxe5 {[%clk 0:02:22.3]} 17... Qxe5 {[%clk 0:02:04.8]} 18. Rxe5 {[%clk
0:02:22.3]} 18... Ba6 {[%clk 0:02:01.4]} 19. Bf1 {[%clk 0:02:15.2]} 19... b5
{[%clk 0:01:23.9]} 20. Nd2 {[%clk 0:02:12.7]} 20... b4 {[%clk 0:01:21.4]} 21.
Rae1 {[%clk 0:02:04.1]} 21... Kf7 {[%clk 0:01:18.3]} 22. c4 {[%clk 0:02:01.8]}
22... Nd4 {[%clk 0:01:10.9]} 23. Bg2 {[%clk 0:01:55.3]} 23... Bb7 {[%clk
0:00:53.1]} 24. Nb3 {[%clk 0:01:51.1]} 24... Nxb3 {[%clk 0:00:51.2]} 25. axb3
{[%clk 0:01:50.7]} 25... Rad8 {[%clk 0:00:49.8]} 26. f4 {[%clk 0:01:40.4]} 26...
h5 {[%clk 0:00:48.9]} 27. Kf2 {[%clk 0:01:36.1]} 27... Rd6 {[%clk 0:00:35.3]}
28. Ra1 {[%clk 0:01:28.8]} 28... a6 {[%clk 0:00:30.5]} 29. Rc1 {[%clk
0:01:17.6]} 29... Rc8 {[%clk 0:00:29.6]} 30. Rce1 {[%clk 0:01:14.9]} 30... Rc7
{[%clk 0:00:25.7]} 31. Bh3 {[%clk 0:01:13.8]} 31... Bc8 {[%clk 0:00:24]} 32.
R1e3 {[%clk 0:00:57]} 32... dxc4 {[%clk 0:00:23.6]} 33. dxc4 {[%clk 0:00:55.3]}
33... Rcc6 {[%clk 0:00:23.7]} 34. Bg2 {[%clk 0:00:45.6]} 34... Rc7 {[%clk
0:00:22.6]} 35. Ke2 {[%clk 0:00:45.5]} 35... Rcd7 {[%clk 0:00:18.6]} 36. Rxc5
{[%clk 0:00:44.7]} 36... Rd2+ {[%clk 0:00:18.5]} 37. Kf1 {[%clk 0:00:44.5]}
37... Rd8 {[%clk 0:00:18.4]} 38. Re2 {[%clk 0:00:38.7]} 38... R2d3 {[%clk
0:00:17.9]} 39. Rg5 {[%clk 0:00:25.9]} 39... Rxb3 {[%clk 0:00:16.5]} 40. Be4
{[%clk 0:00:25.1]} 40... a5 {[%clk 0:00:14.7]} 41. Bc2 {[%clk 0:00:16.9]} 41...
Rf3+ {[%clk 0:00:11.6]} 42. Ke1 {[%clk 0:00:15.9]} 42... Bb7 {[%clk 0:00:11.7]}
43. Bxg6+ {[%clk 0:00:15.1]} 43... Kf6 {[%clk 0:00:11.6]} 44. Bxh5 {[%clk
0:00:15.2]} 44... b3 {[%clk 0:00:11.1]} 45. Rg6+ {[%clk 0:00:14.5]} 45... Kf5
{[%clk 0:00:10.3]} 46. Re5# {[%clk 0:00:13.7]} 1-0

[Event "*** Titled Tuesday Blitz"]
[Site "Chess.com"]
[Date "2020.04.14"]
[Round "2"]
[White "DishonorOnYourCow"]
[Black "hypert"]
[Result "0-1"]
[WhiteElo "2270"]
[BlackElo "2509"]
[TimeControl "180+1"]
[EndTime "10:17:48 PDT"]
[Termination "hypert won by resignation"]

1. d4 {[%clk 0:03:00.9]} 1... Nf6 {[%clk 0:02:57.6]} 2. c4 {[%clk 0:03:00.1]}
2... d6 {[%clk 0:02:58.5]} 3. Nc3 {[%clk 0:02:59]} 3... Nbd7 {[%clk 0:02:59]} 4.
e4 {[%clk 0:02:57.3]} 4... e5 {[%clk 0:02:59]} 5. d5 {[%clk 0:02:57.4]} 5... Nc5
{[%clk 0:02:58.1]} 6. f3 {[%clk 0:02:53.3]} 6... a5 {[%clk 0:02:56]} 7. Be3
{[%clk 0:02:52.1]} 7... Be7 {[%clk 0:02:55.9]} 8. Nge2 {[%clk 0:02:38.3]} 8...
h6 {[%clk 0:02:49.4]} 9. g3 {[%clk 0:02:37.5]} 9... Nh7 {[%clk 0:02:46.7]} 10.
Bg2 {[%clk 0:02:36.8]} 10... O-O {[%clk 0:02:41.1]} 11. O-O {[%clk 0:02:35.2]}
11... f5 {[%clk 0:02:39.8]} 12. exf5 {[%clk 0:02:30]} 12... Bxf5 {[%clk
0:02:38.7]} 13. f4 {[%clk 0:02:30.1]} 13... Nd3 {[%clk 0:02:21.5]} 14. fxe5
{[%clk 0:02:23.9]} 14... Nxb2 {[%clk 0:02:06.6]} 15. Qb3 {[%clk 0:02:21.6]}
15... Nd3 {[%clk 0:02:01.5]} 16. e6 {[%clk 0:02:01.8]} 16... Bg5 {[%clk
0:01:49.9]} 17. Bd4 {[%clk 0:01:53.7]} 17... Nc5 {[%clk 0:01:40.6]} 18. Qd1
{[%clk 0:01:41.5]} 18... Qe7 {[%clk 0:01:28.7]} 19. Nf4 {[%clk 0:01:38.9]} 19...
Bf6 {[%clk 0:01:20.3]} 20. Nh5 {[%clk 0:01:29]} 20... Bxd4+ {[%clk 0:01:15.7]}
21. Qxd4 {[%clk 0:01:29.9]} 21... Bd3 {[%clk 0:01:02.6]} 22. Rxf8+ {[%clk
0:01:16.5]} 22... Rxf8 {[%clk 0:01:03.5]} 23. Ne4 {[%clk 0:01:04.9]} 23... Bxe4
{[%clk 0:00:59.6]} 24. Bxe4 {[%clk 0:01:05.8]} 24... Nf6 {[%clk 0:01:00.1]} 25.
Bg6 {[%clk 0:00:49.8]} 25... Nxh5 {[%clk 0:00:58.8]} 26. Bxh5 {[%clk 0:00:50.7]}
26... Rf5 {[%clk 0:00:50.5]} 27. Bf7+ {[%clk 0:00:46.9]} 27... Kf8 {[%clk
0:00:49.8]} 28. Re1 {[%clk 0:00:37.8]} 28... Nd7 {[%clk 0:00:29.6]} 29. Qd2
{[%clk 0:00:16.4]} 29... Ne5 {[%clk 0:00:28.3]} 30. Qxa5 {[%clk 0:00:14.8]}
30... Rxf7 {[%clk 0:00:20.5]} 31. exf7 {[%clk 0:00:15.7]} 31... Nf3+ {[%clk
0:00:20.1]} 32. Kf2 {[%clk 0:00:15.3]} 32... Qxe1+ {[%clk 0:00:20.5]} 33. Qxe1
{[%clk 0:00:15.2]} 33... Nxe1 {[%clk 0:00:21.4]} 34. Kxe1 {[%clk 0:00:15.7]}
34... Kxf7 {[%clk 0:00:22.3]} 35. a4 {[%clk 0:00:14.2]} 35... b6 {[%clk
0:00:20.9]} 36. Ke2 {[%clk 0:00:13.7]} 36... Kf6 {[%clk 0:00:21.5]} 37. Ke3
{[%clk 0:00:13]} 37... Ke5 {[%clk 0:00:21.9]} 38. g4 {[%clk 0:00:12.6]} 38... g6
{[%clk 0:00:20.7]} 39. h3 {[%clk 0:00:11.5]} 39... g5 {[%clk 0:00:20.6]} 40. Kd3
{[%clk 0:00:09.5]} 40... Kf4 {[%clk 0:00:20.7]} 41. c5 {[%clk 0:00:07.3]} 41...
dxc5 {[%clk 0:00:20.1]} 42. Kc4 {[%clk 0:00:05.6]} 42... Ke5 {[%clk 0:00:20.4]}
43. a5 {[%clk 0:00:04.2]} 43... bxa5 {[%clk 0:00:19.5]} 44. Kxc5 {[%clk
0:00:04.7]} 44... a4 {[%clk 0:00:19.9]} 45. Kc6 {[%clk 0:00:05.2]} 45... a3
{[%clk 0:00:19.4]} 46. Kxc7 {[%clk 0:00:06.1]} 46... Kxd5 {[%clk 0:00:19.4]} 0-1

[Event "*** Titled Tuesday Blitz"]
[Site "Chess.com"]
[Date "2020.04.14"]
[Round "2"]
[White "kagg1125"]
[Black "mphofmann"]
[Result "1-0"]
[WhiteElo "2508"]
[BlackElo "2266"]
[TimeControl "180+1"]
[EndTime "10:17:48 PDT"]
[Termination "kagg1125 won by resignation"]

1. e4 {[%clk 0:03:00]} 1... b6 {[%clk 0:02:59]} 2. d4 {[%clk 0:02:59.3]} 2...
Bb7 {[%clk 0:02:59]} 3. Nc3 {[%clk 0:02:59.5]} 3... e6 {[%clk 0:02:58.5]} 4. Nf3
{[%clk 0:02:56.4]} 4... Bb4 {[%clk 0:02:58.1]} 5. Bd3 {[%clk 0:02:56.6]} 5...
Nf6 {[%clk 0:02:55.8]} 6. e5 {[%clk 0:02:56.6]} 6... Ne4 {[%clk 0:02:52.8]} 7.
Bd2 {[%clk 0:02:55.2]} 7... Nxd2 {[%clk 0:02:50.8]} 8. Qxd2 {[%clk 0:02:56.1]}
8... Bxf3 {[%clk 0:02:22.8]} 9. gxf3 {[%clk 0:02:55.8]} 9... Nc6 {[%clk
0:02:20.6]} 10. Be4 {[%clk 0:02:53.9]} 10... f5 {[%clk 0:02:20.5]} 11. Bxc6
{[%clk 0:02:48]} 11... dxc6 {[%clk 0:02:21.4]} 12. a3 {[%clk 0:02:47.6]} 12...
Be7 {[%clk 0:02:14.7]} 13. Ne2 {[%clk 0:02:46]} 13... Qd7 {[%clk 0:02:10.1]} 14.
O-O-O {[%clk 0:02:45.4]} 14... O-O-O {[%clk 0:02:10.4]} 15. Kb1 {[%clk
0:02:45.4]} 15... Rhg8 {[%clk 0:02:09.2]} 16. h4 {[%clk 0:02:39.7]} 16... Qd5
{[%clk 0:02:07]} 17. Qe3 {[%clk 0:02:31.1]} 17... c5 {[%clk 0:01:57.1]} 18. Nf4
{[%clk 0:02:25.7]} 18... Qc6 {[%clk 0:01:50.2]} 19. Qb3 {[%clk 0:02:02.2]} 19...
Rxd4 {[%clk 0:01:39.6]} 20. Rxd4 {[%clk 0:01:50.9]} 20... cxd4 {[%clk
0:01:40.5]} 21. Nxe6 {[%clk 0:01:51.3]} 21... Re8 {[%clk 0:01:29.4]} 22. Nxd4
{[%clk 0:01:50.3]} 22... Qd7 {[%clk 0:01:17.6]} 23. Qc4 {[%clk 0:01:49]} 23...
Bc5 {[%clk 0:01:12.6]} 24. Nb5 {[%clk 0:01:27.9]} 24... a6 {[%clk 0:01:03.7]}
25. Nc3 {[%clk 0:01:27.9]} 25... Rxe5 {[%clk 0:01:01.3]} 26. Qxa6+ {[%clk
0:01:27.7]} 26... Kb8 {[%clk 0:00:56.9]} 27. f4 {[%clk 0:01:20]} 27... Re8
{[%clk 0:00:49.9]} 28. Rd1 {[%clk 0:01:18]} 28... Qc8 {[%clk 0:00:49.9]} 29. Qa4
{[%clk 0:01:15.6]} 29... Bxf2 {[%clk 0:00:44.6]} 30. Nb5 {[%clk 0:01:12.3]}
30... Qb7 {[%clk 0:00:43.9]} 31. Nd6 {[%clk 0:01:10.7]} 31... Rd8 {[%clk
0:00:32.3]} 32. Nxb7 {[%clk 0:01:08.7]} 32... Rxd1+ {[%clk 0:00:33.2]} 33. Ka2
{[%clk 0:01:09]} 33... Kxb7 {[%clk 0:00:33.9]} 34. h5 {[%clk 0:01:06.2]} 34...
Bc5 {[%clk 0:00:31]} 35. Qe8 {[%clk 0:00:57.6]} 35... Rd6 {[%clk 0:00:26.9]} 36.
Qe5 {[%clk 0:00:53.5]} 36... g6 {[%clk 0:00:26]} 37. h6 {[%clk 0:00:52.5]} 37...
Rd7 {[%clk 0:00:24.5]} 38. a4 {[%clk 0:00:45.9]} 38... Re7 {[%clk 0:00:24.2]}
39. Qf6 {[%clk 0:00:43.7]} 39... Bd6 {[%clk 0:00:23]} 40. c3 {[%clk 0:00:39.7]}
40... Re4 {[%clk 0:00:22.6]} 41. Qg7 {[%clk 0:00:39.1]} 41... Re7 {[%clk
0:00:18.9]} 42. Kb3 {[%clk 0:00:38.9]} 42... Kc6 {[%clk 0:00:10.9]} 43. Qg8
{[%clk 0:00:38]} 43... Bxf4 {[%clk 0:00:08.7]} 44. Qc4+ {[%clk 0:00:37.6]} 44...
Kb7 {[%clk 0:00:06.6]} 45. Qxf4 {[%clk 0:00:38]} 1-0

[Event "*** Titled Tuesday Blitz"]
[Site "Chess.com"]
[Date "2020.04.14"]
[Round "2"]
[White "Generalas"]
[Black "ninullia"]
[Result "1-0"]
[WhiteElo "2277"]
[BlackElo "2464"]
[TimeControl "180+1"]
[EndTime "10:17:48 PDT"]
[Termination "Generalas won on time"]

1. e4 {[%clk 0:03:00.9]} 1... e5 {[%clk 0:02:58.9]} 2. Nf3 {[%clk 0:03:00.4]}
2... Nc6 {[%clk 0:02:57.5]} 3. Bb5 {[%clk 0:03:00.9]} 3... a6 {[%clk 0:02:55.1]}
4. Ba4 {[%clk 0:03:00.9]} 4... Nf6 {[%clk 0:02:54.8]} 5. O-O {[%clk 0:03:00.9]}
5... Be7 {[%clk 0:02:55.4]} 6. Re1 {[%clk 0:03:00.7]} 6... b5 {[%clk 0:02:56.1]}
7. Bb3 {[%clk 0:03:00.4]} 7... d6 {[%clk 0:02:57]} 8. Bd5 {[%clk 0:02:33.5]}
8... Nxd5 {[%clk 0:02:50.5]} 9. exd5 {[%clk 0:02:33.1]} 9... Nd4 {[%clk
0:02:51.4]} 10. Nxd4 {[%clk 0:02:30.3]} 10... exd4 {[%clk 0:02:51.7]} 11. Qe2
{[%clk 0:02:23.7]} 11... Bd7 {[%clk 0:02:50]} 12. Qe4 {[%clk 0:02:18.9]} 12...
f5 {[%clk 0:02:28.7]} 13. Qxd4 {[%clk 0:02:14.8]} 13... O-O {[%clk 0:02:28.7]}
14. d3 {[%clk 0:02:02.4]} 14... Bf6 {[%clk 0:02:28.5]} 15. Qf4 {[%clk
0:01:59.7]} 15... Be5 {[%clk 0:02:26]} 16. Qf3 {[%clk 0:01:57.6]} 16... g5
{[%clk 0:02:14.4]} 17. Qh5 {[%clk 0:01:44.9]} 17... f4 {[%clk 0:02:10.7]} 18.
Nc3 {[%clk 0:01:41.3]} 18... Rf6 {[%clk 0:01:53.8]} 19. Qxg5+ {[%clk 0:01:38.2]}
19... Rg6 {[%clk 0:01:35.4]} 20. Qxd8+ {[%clk 0:01:36.6]} 20... Rxd8 {[%clk
0:01:35.9]} 21. d4 {[%clk 0:01:02.9]} 21... Bh3 {[%clk 0:01:05.9]} 22. dxe5
{[%clk 0:00:47.9]} 22... Bxg2 {[%clk 0:01:06]} 23. Bxf4 {[%clk 0:00:41.9]} 23...
dxe5 {[%clk 0:00:50.2]} 24. Bg3 {[%clk 0:00:31.3]} 24... Bf3 {[%clk 0:00:46.7]}
25. Rxe5 {[%clk 0:00:26.9]} 25... h5 {[%clk 0:00:46.5]} 26. h4 {[%clk
0:00:25.4]} 26... b4 {[%clk 0:00:44.6]} 27. Ne4 {[%clk 0:00:24.3]} 27... Rg4
{[%clk 0:00:19.3]} 28. Nf6+ {[%clk 0:00:23]} 28... Kf7 {[%clk 0:00:17.9]} 29.
Nxg4 {[%clk 0:00:23.9]} 29... hxg4 {[%clk 0:00:17.8]} 30. Rae1 {[%clk
0:00:23.8]} 30... Bxd5 {[%clk 0:00:15.5]} 31. Rd1 {[%clk 0:00:23.3]} 31... c6
{[%clk 0:00:14.4]} 32. c4 {[%clk 0:00:23.3]} 32... bxc3 {[%clk 0:00:14.3]} 33.
bxc3 {[%clk 0:00:23.5]} 33... Rh8 {[%clk 0:00:06.8]} 34. h5 {[%clk 0:00:22.8]}
34... Kf6 {[%clk 0:00:06.4]} 35. c4 {[%clk 0:00:22.3]} 35... Bf3 {[%clk
0:00:03.7]} 36. Rd6+ {[%clk 0:00:21.4]} 36... Kf7 {[%clk 0:00:04.2]} 37. Rf5+
{[%clk 0:00:21.2]} 37... Ke8 {[%clk 0:00:02.7]} 38. Rg6 {[%clk 0:00:19.9]} 38...
Ke7 {[%clk 0:00:01.4]} 39. Re5+ {[%clk 0:00:19.5]} 39... Kd7 {[%clk 0:00:01.7]}
40. c5 {[%clk 0:00:17.7]} 40... Bd5 {[%clk 0:00:01.2]} 41. Rg7+ {[%clk
0:00:16.1]} 41... Kc8 {[%clk 0:00:01.7]} 42. Bf4 {[%clk 0:00:14.9]} 42... Bf3
{[%clk 0:00:01.2]} 43. Kh2 {[%clk 0:00:14.7]} 1-0

[Event "*** Titled Tuesday Blitz"]
[Site "Chess.com"]
[Date "2020.04.14"]
[Round "2"]
[White "Duong57"]
[Black "Lion-Al-Messi"]
[Result "0-1"]
[WhiteElo "2207"]
[BlackElo "2472"]
[TimeControl "180+1"]
[EndTime "10:17:48 PDT"]
[Termination "Lion-Al-Messi won by checkmate"]

1. d4 {[%clk 0:03:00.9]} 1... b6 {[%clk 0:02:57.5]} 2. c4 {[%clk 0:02:59.3]}
2... Bb7 {[%clk 0:02:57.5]} 3. Nc3 {[%clk 0:02:59.8]} 3... e6 {[%clk 0:02:57.8]}
4. e4 {[%clk 0:02:58.5]} 4... Bb4 {[%clk 0:02:57.5]} 5. Qc2 {[%clk 0:02:55.8]}
5... Ne7 {[%clk 0:02:55.2]} 6. Nf3 {[%clk 0:02:37.5]} 6... O-O {[%clk
0:02:47.9]} 7. Bd3 {[%clk 0:02:36.7]} 7... f6 {[%clk 0:02:41.7]} 8. O-O {[%clk
0:02:35.3]} 8... Nbc6 {[%clk 0:02:37]} 9. Bd2 {[%clk 0:02:29.9]} 9... Ng6 {[%clk
0:02:26.5]} 10. a3 {[%clk 0:02:27.6]} 10... Bxc3 {[%clk 0:02:26.3]} 11. Bxc3
{[%clk 0:02:24.3]} 11... Nf4 {[%clk 0:02:21.7]} 12. d5 {[%clk 0:02:18]} 12...
Ne7 {[%clk 0:02:10.9]} 13. e5 {[%clk 0:01:50.9]} 13... f5 {[%clk 0:02:11.1]} 14.
Rad1 {[%clk 0:01:29.9]} 14... Qe8 {[%clk 0:02:07.7]} 15. Rfe1 {[%clk 0:01:17]}
15... Qh5 {[%clk 0:01:51.8]} 16. Bf1 {[%clk 0:01:13.9]} 16... exd5 {[%clk
0:01:46.6]} 17. cxd5 {[%clk 0:01:13]} 17... Nexd5 {[%clk 0:01:45.4]} 18. Bd2
{[%clk 0:01:10]} 18... Kh8 {[%clk 0:01:41.1]} 19. Nd4 {[%clk 0:00:56.5]} 19...
Nh3+ {[%clk 0:01:05.7]} 20. Kh1 {[%clk 0:00:21.2]} 20... Nxf2+ {[%clk
0:01:04.5]} 21. Kg1 {[%clk 0:00:21.8]} 21... Nxd1 {[%clk 0:00:56.7]} 22. Rxd1
{[%clk 0:00:21.7]} 22... f4 {[%clk 0:00:53.2]} 23. Be2 {[%clk 0:00:20]} 23...
Qxe5 {[%clk 0:00:45.5]} 24. Bc1 {[%clk 0:00:13.8]} 24... Ne3 {[%clk 0:00:44.8]}
25. Bxe3 {[%clk 0:00:13.4]} 25... fxe3 {[%clk 0:00:45.5]} 26. Nf3 {[%clk
0:00:12.1]} 26... Bxf3 {[%clk 0:00:35.2]} 27. Bxf3 {[%clk 0:00:11.1]} 27... Rae8
{[%clk 0:00:35.7]} 28. Qe2 {[%clk 0:00:10.5]} 28... Re7 {[%clk 0:00:25.8]} 29.
Rd5 {[%clk 0:00:10.2]} 29... Qf4 {[%clk 0:00:21.7]} 30. Rd1 {[%clk 0:00:09.7]}
30... c6 {[%clk 0:00:21.3]} 31. h3 {[%clk 0:00:09.1]} 31... d5 {[%clk
0:00:21.3]} 32. Rd3 {[%clk 0:00:08]} 32... d4 {[%clk 0:00:20.7]} 33. Qd1 {[%clk
0:00:07.1]} 33... c5 {[%clk 0:00:19.3]} 34. Qe2 {[%clk 0:00:06.6]} 34... Qg3
{[%clk 0:00:18.2]} 35. b3 {[%clk 0:00:05.8]} 35... Rxf3 {[%clk 0:00:15.9]} 36.
Qxf3 {[%clk 0:00:06]} 36... Qxf3 {[%clk 0:00:16]} 37. gxf3 {[%clk 0:00:05.7]}
37... e2 {[%clk 0:00:15.1]} 38. Kg2 {[%clk 0:00:05.9]} 38... e1=Q {[%clk
0:00:13.9]} 39. f4 {[%clk 0:00:02]} 39... Re2+ {[%clk 0:00:13.7]} 40. Kf3 {[%clk
0:00:01.8]} 40... Qf2+ {[%clk 0:00:14]} 41. Kg4 {[%clk 0:00:02.2]} 41... Qg2+
{[%clk 0:00:14.7]} 42. Kf5 {[%clk 0:00:02.7]} 42... Qe4+ {[%clk 0:00:15]} 43.
Kg5 {[%clk 0:00:03.2]} 43... Rg2+ {[%clk 0:00:15.5]} 44. Kh4 {[%clk 0:00:03.1]}
44... Qxf4+ {[%clk 0:00:15.4]} 45. Kh5 {[%clk 0:00:03.5]} 45... g6# {[%clk
0:00:16.3]} 0-1